Cogmind - Beta 10.2 @@@ ROGUE MODE // 2022.01.23 @ 16:58:22 Player: Jezoensis Result: Self-destructed Performance ------------- Evolutions (1) 500 Regions Visited (3) 600 Robots Destroyed (25) 125 Value Destroyed (309) 309 Prototype IDs (2) 40 Alien Tech Used (0) 0 Bonus (0) 0 TOTAL SCORE: 1574 Bonus ------- None Cogmind --------- Core Integrity 400/400 Matter 240/300 Energy 265/265 System Corruption 0% Temperature Cool (0) Movement Treading (160) Location -9/Materials Parts ------- > --- POWER (1) -------- Improved Ion Engine > --- PROPULSION (3) --- Improved Treads Improved Treads > --- UTILITY (3) ------ High-capacity Storage Unit Structural Scanner > --- WEAPON (2) ------- EM Pulse Gun Light Assault Rifle > --- INVENTORY (12) --- Light Treads Improved Treads Improved Treads Cooling System Seismic Analyzer EM Pulse Gun EM Pulse Gun Grenade Launcher Mining Laser Blade Trap Blade Trap Peak State ------------ > --- POWER ------------ Improved Ion Engine > --- PROPULSION ------- Improved Treads Improved Treads > --- UTILITY ---------- Medium Storage Unit Improved Terrain Scanner > --- WEAPON ----------- Light Assault Rifle Grenade Launcher > --- INVENTORY -------- Light Treads Improved Treads Improved Treads EM Pulse Gun EM Pulse Gun EM Pulse Gun EM Pulse Gun Mining Laser [Rating: 12] Favorites ----------- Power Improved Ion Engine Engine Improved Ion Engine Propulsion Improved Treads Treads Improved Treads Utility High-capacity Storage Unit Device Improved Terrain Scanner Storage High-capacity Storage Unit Weapon Light Assault Rifle Energy Gun EM Pulse Gun Ballistic Gun Light Assault Rifle Launcher Grenade Launcher Special Weapon Mining Laser Build | -11 -10 -10 -9 ------- Run | Scr Mat Min Mat Slots Evolved 2 | . . . 2 Power . | . . . . Propulsion 1 | . . . 1 Utility 1 | . . . 1 Weapon . | . . . . Parts Attached 21 | 7 11 2 1 Power 2 | 1 1 . . Engine 2 | 1 1 . . Core . | . . . . Reactor . | . . . . Propulsion 4 | 2 2 . . Treads 4 | 2 2 . . Leg . | . . . . Wheel . | . . . . Hover . | . . . . Flight . | . . . . Utility 5 | 2 2 . 1 Device 2 | 1 . . 1 Storage 3 | 1 2 . . Processor . | . . . . Hackware . | . . . . Protection . | . . . . Artifact . | . . . . Weapon 10 | 2 6 2 . Energy Gun 5 | 1 3 1 . Energy Cannon . | . . . . Ballistic Gun 1 | 1 . . . Ballistic Cannon . | . . . . Launcher 3 | . 2 1 . Special Weapon 1 | . 1 . . Impact Weapon . | . . . . Slashing Weapon . | . . . . Piercing Weapon . | . . . . Special Melee Weapon . | . . . . Unidentified Prototypes . | . . . . Parts Lost 2 | . 2 . . Power . | . . . . Propulsion . | . . . . Utility 1 | . 1 . . Weapon 1 | . 1 . . Highest Loss Streak 2 | . 2 . . Average Slot Usage (%) 89 | . 95 85 77 Engine 13 | . 14 14 11 Treads 27 | . 28 28 22 Device 5 | . 9 . 11 Storage 13 | . 14 14 11 Energy Gun 12 | . 11 13 11 Ballistic Gun 13 | . 14 14 11 Launcher 1 | . 2 . . Naked Turns . | . . . . Heaviest Build 43 | 13 43 42 43 Greatest Support 46 | 40 46 46 46 Greatest Overweight (x) . | . . . . Average Overweight (x) . | . . . . Largest Inventory Capacity 12 | 6 12 12 12 Average Capacity 10 | 5 9 12 12 Most Carried 11 | 4 8 11 11 Average Carried 7 | 2 7 8 10 Final Capacity 12 | 6 12 12 12 Final Carried 11 | 4 7 11 11 Class Distribution -------------------- 100% | Mutant Dominant Class ---------------- Mutant | -10/Materials Mutant | -10/Mines Mutant | -9/Materials Resources | -11 -10 -10 -9 ----------- Run | Scr Mat Min Mat Matter Collected 496 | 277 85 134 . Remotely . | . . . . Salvage Created 509 | 142 228 139 . Parts 45 | 10 21 14 . Haulers Intercepted . | . . . . Recyclers Shooed . | . . . . Parts Field Recycled . | . . . . Retrieved Matter . | . . . . Parts Self-Destructed . | . . . . Prevented . | . . . . Kills | -11 -10 -10 -9 ------- Run | Scr Mat Min Mat Combat Hostiles Destroyed 12 | . 8 4 . Guns 2 | . 1 1 . AOE 10 | . 7 3 . Classes Destroyed 7 | 2 5 . . Worker 1 | . 1 . . Builder 4 | . 3 1 . Tunneler 5 | 2 . 3 . Recycler 1 | 1 . . . Watcher 2 | . 2 . . Swarmer 9 | . 6 3 . Grunt 3 | . 2 1 . Best Kill Streak 7 | 2 7 3 . Combat Bots Only 4 | . 4 3 . Max Kills in Single Turn 3 | 1 3 1 . Gunslinging . | . . . . Exploded 3 | . 3 1 . Melee . | . . . . Uniques/NPCs Destroyed . | . . . . Combat | -11 -10 -10 -9 -------- Run | Scr Mat Min Mat Damage Taken 517 | . 370 114 33 Core 54 | . 37 17 . Absorbed by Shields . | . . . . Core Remaining (%) 89 | 100 . 78 . Volleys Fired 58 | 7 25 26 . Largest 2 | 2 2 2 . Hottest 100 | 60 100 60 . Shots Fired 104 | 14 43 47 . Gun 91 | 14 34 43 . Cannon . | . . . . Launcher 11 | . 7 4 . Special 2 | . 2 . . Kinetic 46 | 7 18 21 . Thermal 2 | . 2 . . Explosive 11 | . 7 4 . Electromagnetic 45 | 7 16 22 . Robot Hit Streak 7 | 4 7 7 . Robot Miss Streak 4 | 2 2 4 . Penetration Max . | . . . . Secondary Targets 1 | . 1 . . Max Gunslinging Chain 1 | . 1 . . Shots Hit Robots 57 | 8 23 26 . Core Hits 38 | 4 23 11 . Critical Hits . | . . . . Critical Kills . | . . . . Critical Parts Destroyed . | . . . . Melee Attacks . | . . . . Impact . | . . . . Slashing . | . . . . Piercing . | . . . . Sneak Attacks . | . . . . Combat Hostiles . | . . . . Follow-up Attacks . | . . . . Damage Inflicted 1340 | 82 681 577 . Guns 589 | 82 210 297 . Cannons . | . . . . Explosions 751 | . 471 280 . Melee . | . . . . Ramming . | . . . . Kinetic 176 | 18 74 84 . Thermal . | . . . . Explosive 751 | . 471 280 . Electromagnetic 413 | 64 136 213 . Impact . | . . . . Slashing . | . . . . Piercing . | . . . . Highest Corruption 2 | . 2 2 . Average Corruption 2 | . 2 2 . Corruption Purged . | . . . . Effects 12 | . 3 9 . Message Errors 3 | . 1 2 . Heat Flow Errors 1 | . . 1 . Energy Discharges 1 | . 1 . . Data Loss (minor) 3 | . . 3 . Targeting Errors 3 | . 1 2 . Weapon Failures 1 | . . 1 . Overload Shots . | . . . . Overflow Damage 36 | . 5 31 . Projectiles . | . . . . Explosions 36 | . 5 31 . Melee . | . . . . Knockbacks . | . . . . Impact . | . . . . Kinetic . | . . . . Secondary . | . . . . Self-Inflicted Damage . | . . . . Shots . | . . . . Rammed . | . . . . Targets Rammed . | . . . . Kicked . | . . . . Crushed . | . . . . Highest Temperature 242 | 40 237 242 . Average Temperature 65 | 25 106 36 . Received Heat Transfer 222 | . 180 33 9 Effects 2 | . 1 1 . Energy Bleed 1 | . 1 . . Interference 1 | . . 1 . Siege Activations . | . . . . Robots Corrupted . | . . . . Combat Hostiles . | . . . . Parts Fried 1 | . . 1 . Impact Corruptions . | . . . . Robots Melted . | . . . . Combat Hostiles . | . . . . Parts Melted . | . . . . Heat Transferred . | . . . . Parts Sabotaged . | . . . . Parts Stolen . | . . . . Parts Stripped . | . . . . Power Chain Reactions . | . . . . Missiles Intercepted . | . . . . Alert | -11 -10 -10 -9 ------- Run | Scr Mat Min Mat Peak Influence 147 | 15 147 80 38 Initial 23 | . 9 . 23 Average 46 | 7 40 59 23 Maximum Alert Level . | . . . . Low Security (%) 100 | 100 100 100 100 Level 1 . | . . . . Level 2 . | . . . . Level 3 . | . . . . Level 4 . | . . . . Level 5 . | . . . . High Security . | . . . . Max Security . | . . . . Squads Dispatched 1 | . 1 . . Investigation . | . . . . Extermination . | . . . . Reinforcement 1 | . 1 . . Assault . | . . . . Garrison . | . . . . Intercept . | . . . . Construction Impeded . | . . . . Haulers Reinforced . | . . . . Stealth | -11 -10 -10 -9 --------- Run | Scr Mat Min Mat Distress Signals 1 | . 1 . . Communications Jammed . | . . . . Distress Signals . | . . . . Times Spotted 19 | . 12 6 1 Peak Tracking Total 5 | . 5 3 2 Tactical Retreats 2 | . . 2 . Traps | -11 -10 -10 -9 ------- Run | Scr Mat Min Mat Traps Triggered 1 | . 1 . . Indirectly . | . . . . Trap Hack Attempts . | . . . . Triggered . | . . . . Disarmed . | . . . . Reprogrammed . | . . . . Reused 1 | . . 1 . Traps Extracted . | . . . . Installed 1 | . . 1 . Triggered 1 | . . 1 . Machines | -11 -10 -10 -9 ---------- Run | Scr Mat Min Mat Machines Disabled 1 | . 1 . . Max in Single Turn 1 | . 1 . . Machines Sabotaged . | . . . . Garrisons Compromised . | . . . . Overloaded Fab Kills . | . . . . Fab Network Shutdowns . | . . . . Hacking | -11 -10 -10 -9 --------- Run | Scr Mat Min Mat Machines Accessed 7 | . 7 . . Terminals 7 | . 7 . . Fabricators . | . . . . Repair Stations . | . . . . Recycling Units . | . . . . Scanalyzers . | . . . . Garrison Access . | . . . . Total Hacks 23 | . 23 . . Successful 11 | . 11 . . Failed 11 | . 11 . . Catastrophic 1 | . 1 . . Database Lockouts 1 | . 1 . . Manual 16 | . 16 . . Terminals 23 | . 23 . . Fabricators . | . . . . Repair Stations . | . . . . Recycling Units . | . . . . Scanalyzers . | . . . . Garrison Access . | . . . . Terminal Hacks 7 | . 7 . . Record 1 | . 1 . . Part Schematic 1 | . 1 . . Prototype ID Bank 1 | . 1 . . Branch Access Points 1 | . 1 . . Terminal Index 1 | . 1 . . Unreport Threat 1 | . 1 . . Locate Traps 1 | . 1 . . Fabricator Hacks . | . . . . Repair Station Hacks . | . . . . Recycling Unit Hacks . | . . . . Scanalyzer . | . . . . Garrison Access Hacks . | . . . . Unauthorized Hacks 4 | . 4 . . Terminals 4 | . 4 . . Track 2 | . 2 . . Botnet 2 | . 2 . . Fabricators . | . . . . Repair Stations . | . . . . Recycling Units . | . . . . Scanalyzers . | . . . . Garrison Access . | . . . . Data Cores Recovered . | . . . . Used . | . . . . Hacking Detections 6 | . 6 . . Full Trace Events 1 | . 1 . . Feedback Events . | . . . . Feedback Blocked . | . . . . Robot Schematics Acquired . | . . . . Robots Built . | . . . . Matter . | . . . . Time . | . . . . Total Robot Build Rating . | . . . . Part Schematics Acquired 1 | . 1 . . Parts Built . | . . . . Matter . | . . . . Time . | . . . . Total Part Build Rating . | . . . . Parts Repaired . | . . . . Time . | . . . . Parts Recycled . | . . . . Recycled Matter . | . . . . Retrieved Matter . | . . . . Retrieved Components . | . . . . Parts Scanalyzed . | . . . . Part Schematics Acquired . | . . . . Parts Damaged . | . . . . Bothacking | -11 -10 -10 -9 ------------ Run | Scr Mat Min Mat Used RIF Installer . | . . . . Robots Hacked . | . . . . Non-combat . | . . . . Combat . | . . . . Robot Hacks Applied . | . . . . Relay Couplers Released . | . . . . Robots Rewired . | . . . . Allies Hacked . | . . . . Hacks Repelled . | . . . . Allies | -11 -10 -10 -9 -------- Run | Scr Mat Min Mat Total Allies . | . . . . Largest Group . | . . . . Highest-Rated Group . | . . . . Highest-Rated Ally . | . . . . Total Orders . | . . . . Ally Attacks . | . . . . Total Damage . | . . . . Kills . | . . . . Allies Corrupted . | . . . . Allies Melted . | . . . . Intel | -11 -10 -10 -9 ------- Run | Scr Mat Min Mat Robot Analysis Total . | . . . . Derelict Logs Recovered 1 | . . 1 . Drone Launches . | . . . . Drone Recoveries . | . . . . Exploration | -11 -10 -10 -9 ------------- Run | Scr Mat Min Mat Turns Passed 1493 | 79 701 664 49 Spaces Moved 813 | 38 380 366 29 Core 14 | 14 . . . Treads 799 | 24 380 366 29 Legs . | . . . . Wheels . | . . . . Hover . | . . . . Flight . | . . . . Fastest Speed 50 | 50 160 160 160 Average Speed 158 | 119 160 160 160 Slowest Speed 160 | 160 160 160 160 Overloaded Moves . | . . . . Propulsion Burnouts . | . . . . Robots Hopped . | . . . . Cave-ins Triggered . | . . . . Exploration Rate (%) 43 | 3 80 83 7 Regions Visited 3 Branch Regions 1 Pre-discovered Areas . | . . . . Known Exits Taken 1 | . 1 . . Unknown Exits Taken 2 | 1 . 1 . Scrap Searched 1 | . . 1 . Spaces Dug 2 | . 2 . . Terrain Destroyed 64 | . 32 32 . Melee . | . . . . Projectile 2 | . 2 . . AOE 62 | . 30 32 . Terrain Rammed . | . . . . Walls Destroyed . | . . . . Machines Disabled . | . . . . Actions | -11 -10 -10 -9 --------- Run | Scr Mat Min Mat Total 922 | 57 434 400 31 Wait . | . . . . Move 810 | 37 379 365 29 Hop . | . . . . Pick Up 21 | 6 9 5 1 Fast Attach 5 | 5 . . . Attach 4 | 2 1 . 1 Detach . | . . . . Swap 12 | . 10 2 . Drop 11 | . 10 1 . Fire 58 | 7 25 26 . Melee . | . . . . Ram . | . . . . Kick . | . . . . Crush . | . . . . Escape Stasis . | . . . . Rewire . | . . . . Trap 1 | . . 1 . Miscellaneous . | . . . . Route ------- -11/Scrapyard -10/Materials (discovered 3 exits: [*Mat x2] / *Min) -10/Mines -9/Materials (discovered 1 exit: Min) History --------- Turn | Location | Event 7 | -11/Scrapyard | Discovered new exit (range 15) 80 | -11/Scrapyard | Entered Materials 274 | -10/Materials | Discovered new exit (range 15) 300 | -10/Materials | Build established: Mutant 390 | -10/Materials | Central database locked down 400 | -10/Materials | Discovered new exit (range 10) 602 | -10/Materials | Discovered new exit (range 13) 690 | -10/Materials | Identified exit to Mines 781 | -10/Materials | Entered Mines 863 | -10/Mines | Learned location of 1 exit from Materials 1118 | -10/Mines | Found a hidden stash of uninstalled traps 1395 | -10/Mines | Discovered new exit (range 13) 1445 | -10/Mines | Entered Materials 1445 | -9/Materials | Evolved 2 slots: Propulsion x1, Utility x1 1446 | -9/Materials | Identified exit to Mines 1494 | -9/Materials | Self-destructed Last Messages --------------- 01216_ Particle Gun severed. 01216_ Lgt. Nuclear Core severed. 01216_ Aluminum Leg severed. 01219_ G-34 Mercenary misfires. 01227_ G-34 Mercenary destroyed. 01231_ Acquired 42 matter. 01279_ System corrupted: Component data lost. 01318_ System corrupted: Lgt. Assault Rifle jammed. 01318_ Imp. Terrain Scanner fried. 01318_ T-07 Excavator destroyed. 01338_ Acquired Seismic Analyzer. 01339_ Acquired 20 matter. 01369_ System corrupted: Component data lost. 01395_ EXIT=FOUND 01424_ T-07 Excavator destroyed. PARAMETERS=PROPULSION_1,UTILITY_1 LOCATION=UNKNOWN GOAL=ESCAPE Loading 1 Materials exit... 01454_ Acquired Cooling System. Map ----- +----------------------------------------------------+ | ?????????????????????????????????????????????????? | | ?????????????????????????????????????????????????? | | ?????????????????????????????????????????????????? | | ?????????????????????????????????????????????????? | | ?????????????????????????????????????????????????? | | ?????????????????????????????????????????????????? | | ?????????????????????????????????????????????????? | | ?????????????????????????????????????????????????? | | ?????????????????????????????????????????????????? | | ?????????????????????????????????????????????????? | | ??????????????????????? Yk???????????????????????? | | ?????????????????????? ???????????????????????? | | ?????????????????????? ???????????????????????? | | ??????????????????????# ???????????????????????? | | ??????????????????????# ???????????????????????? | | ??????????????????????# ???????????????????????? | | ??????????????????????# #??????????????????????? | | ??????????????????????# #??????????????????????? | | ??????????????????????# #??????????????????????? | | ??????????????????????# #??????????????????????? | | ??????????????????????# #??????????????????????? | | ??????????????????????# #??????????????????????? | | ??????????????????????# ########?##????????????? | | ??????????????????????# ## #???????????? | | ????????????????####### ## """ #???????????? | | ????????????????# @ # """ #???????????? | | ????????????????# ^ # """ #???????????? | | ????????????????+ ^ + """ ! #???????????? | | ????????????????# # """ #???????????? | | ????????????????# # !! #???????????? | | ????????????????# ^ ## ! #???????????? | | ????????????????# ^ ############???????????? | | ????????????????# ##### #??????????????????????? | | ????????????????#?????# #??????????????????????? | | ??????????????????????# #??????????????????????? | | ??????????????????????# #??????????????????????? | | ??????????????????????# ###########????????????? | | ??????????????????????# # #????????????? | | ??????????????????????# # #????????????? | | ??????????????????????# # #????????????? | | ??????????????????????# # #????????????? | | ??????????????????????# + !! #????????????? | | ??????????????????????# # !! #????????????? | | ??????????????????????# # !! #????????????? | | ??????????????????????# #! #????????????? | | ??????????????????????###############????????????? | | ?????????????????????????????????????????????????? | | ?????????????????????????????????????????????????? | | ?????????????????????????????????????????????????? | | ?????????????????????????????????????????????????? | +----------------------------------------------------+ Best States ------------- Heat Dissipation 28 Energy Generation 12 Energy Capacity 265 Matter Stores 300 Matter Capacity 300 Sight Range 16 Terrain Scan Range 16 Terrain Scan Density 10 Evasion (%) 50 Recoil Reduction 2 Item Schematics ----------------- Lrg. Storage Unit | -10/Materials | Hacked Robot Schematics ------------------ None Fabricated ------------ Nothing Alien Tech Used ----------------- None Achievements -------------- None Challenges ------------ None Game ------ Seed ShadingAbsorptionRipper Manual? 0 Play Time 00:12:39 Cumulative 494.0 hours Start 2022.01.23 @ 16:42:30 End 2022.01.23 @ 16:58:22 Sessions 1 Manual Loads 0 Difficulty Rogue Special Mode None Game No. 238 Rogue 111 Adventurer 125 Explorer 2 Win Type - Total 44 Types 37/3/2/0/1/0/0/0/1 Lore% 65 Gallery% 85 Achievement% 66 Wizard Run 0 Options --------- ASCII 0 Keyboard 1 Movement Numpad Keybinds 0 Fullscreen 1 Font 36/TerminusFine Map View 76x50 Tactical HUD 1 Map Filters NONE Filters NONE Steam 1 RUN: c3e97f9b-3cbf-414c-8925-0c9659b34b5d